Cogmind - Beta 12 @@@ ROGUE MODE // 2023.07.14 @ 17:28:26 Player: ZOT Result: Destroyed by L-31 Rogue with Katana Performance ------------- Evolutions (1) 500 Regions Visited (2) 400 Robots Destroyed (20) 100 Value Destroyed (558) 558 Prototype IDs (0) 0 Alien Tech Used (0) 0 Bonus (0) 0 TOTAL SCORE: 1558 Bonus ------- None Cogmind --------- Core Integrity 0/400 Matter 246/300 Energy 50/100 System Corruption 1% Temperature Cool (0) Movement Core (50) Location -9/Materials Parts ------- > --- POWER (1) -------- (None) > --- PROPULSION (4) --- (None) > --- UTILITY (2) ------ (None) > --- WEAPON (2) ------- (None) > --- INVENTORY (5) ---- Light Ion Engine Aluminum Leg Aluminum Leg Targeting Computer Mining Laser Peak State ------------ > --- POWER ------------ Light Ion Engine > --- PROPULSION ------- Aluminum Leg Aluminum Leg Aluminum Leg VTOL Module > --- UTILITY ---------- Improved Terrain Scanner Seismic Detector > --- WEAPON ----------- Medium Laser Light Assault Rifle > --- INVENTORY -------- Light Ion Engine Aluminum Leg Flight Unit Flight Unit Mining Laser [Rating: 12] Favorites ----------- Power Light Ion Engine Engine Light Ion Engine Propulsion Aluminum Leg Leg Aluminum Leg Wheel Wheel Flight Unit Flight Unit Utility Improved Terrain Scanner Device Improved Terrain Scanner Weapon Medium Laser Energy Gun Medium Laser Ballistic Gun Light Assault Rifle Launcher Rocket Launcher Build | -11 -10 -9 ------- Run | Jun Mat Mat Slots Evolved 2 | . . 2 Power . | . . . Propulsion 2 | . . 2 Utility . | . . . Weapon . | . . . Parts Attached 16 | 7 . 9 Power 1 | 1 . . Engine 1 | 1 . . Core . | . . . Reactor . | . . . Propulsion 9 | 2 . 7 Treads . | . . . Leg 5 | 2 . 3 Wheel 2 | . . 2 Hover . | . . . Flight 2 | . . 2 Utility 2 | 2 . . Device 2 | 2 . . Storage . | . . . Processor . | . . . Hackware . | . . . Protection . | . . . Artifact . | . . . Weapon 4 | 2 . 2 Energy Gun 2 | 1 . 1 Energy Cannon . | . . . Ballistic Gun 1 | 1 . . Ballistic Cannon . | . . . Launcher 1 | . . 1 Special Weapon . | . . . Impact Weapon . | . . . Slashing Weapon . | . . . Piercing Weapon . | . . . Special Melee Weapon . | . . . Unidentified Prototypes . | . . . Parts Lost 11 | . . 11 Power 1 | . . 1 Propulsion 4 | . . 4 Utility 2 | . . 2 Weapon 4 | . . 4 Highest Loss Streak 5 | . . 5 To Critical Strikes . | . . . Average Slot Usage (%) 78 | . 100 76 Engine 8 | . 14 7 Leg 25 | . 28 24 Wheel 6 | . . 6 Flight 2 | . . 2 Device 17 | . 28 16 Energy Gun 9 | . 14 9 Ballistic Gun 9 | . 14 8 Naked Turns 54 | . . 54 Heaviest Build 8 | 8 8 8 Greatest Support 40 | 20 20 40 Greatest Overweight (x) 1 | . . 1 Average Overweight (x) . | . . . Largest Inventory Capacity 5 | 5 5 5 Average Capacity 5 | 5 5 5 Most Carried 5 | 5 5 5 Average Carried 3 | 3 5 4 Final Capacity 5 | 5 5 5 Final Carried 5 | 5 5 5 Class Distribution -------------------- 79% | Mutant 20% | Scavenger-Mutant Dominant Class ---------------- Mutant | -10/Materials Mutant | -9/Materials Resources | -11 -10 -9 ----------- Run | Jun Mat Mat Matter Collected 381 | 251 . 130 Remotely . | . . . Salvage Created 612 | 50 . 562 Parts 53 | 7 . 46 Haulers Intercepted . | . . . Recyclers Shooed 2 | 1 . 1 Parts Field Recycled . | . . . Retrieved Matter . | . . . Parts Self-Destructed . | . . . Prevented . | . . . Kills | -11 -10 -9 ------- Run | Jun Mat Mat Combat Hostiles Destroyed 16 | . . 16 Guns 12 | . . 12 AOE 4 | . . 4 Classes Destroyed 5 | 1 . 4 Tunneler 2 | 2 . . Watcher 2 | . . 2 Swarmer 4 | . . 4 Grunt 8 | . . 8 Sentry 4 | . . 4 Best Kill Streak 9 | 2 . 9 Combat Bots Only 8 | . . 8 Max Kills in Single Turn 3 | 1 . 3 Gunslinging . | . . . Exploded 3 | . . 3 Melee . | . . . Uniques/NPCs Destroyed . | . . . Combat | -11 -10 -9 -------- Run | Jun Mat Mat Damage Taken 1152 | . . 1152 Core 409 | . . 409 Absorbed by Shields . | . . . Core Remaining (%) 100 | 100 100 . Volleys Fired 70 | 11 . 59 Largest 2 | 2 . 2 Hottest 70 | 70 . 70 Shots Fired 127 | 19 . 108 Gun 123 | 19 . 104 Cannon . | . . . Launcher 4 | . . 4 Special . | . . . Kinetic 57 | 8 . 49 Thermal 61 | 11 . 50 Explosive 4 | . . 4 Electromagnetic 5 | . . 5 Robot Hit Streak 14 | 6 . 14 Robot Miss Streak 6 | 6 . 3 Penetration Max . | . . . Secondary Targets 1 | . . 1 Max Gunslinging Chain 1 | . . 1 Shots Hit Robots 77 | 10 . 67 Core Hits 38 | 4 . 34 Critical Kills . | . . . Critical Parts Destroyed . | . . . Critical Strikes 3 | . . 3 Burn 3 | . . 3 Melee Attacks . | . . . Impact . | . . . Slashing . | . . . Piercing . | . . . Sneak Attacks . | . . . Combat Hostiles . | . . . Follow-up Attacks . | . . . Damage Inflicted 1190 | 125 . 1065 Guns 783 | 125 . 658 Cannons . | . . . Explosions 407 | . . 407 Melee . | . . . Ramming . | . . . Kinetic 258 | 39 . 219 Thermal 511 | 86 . 425 Explosive 346 | . . 346 Electromagnetic 75 | . . 75 Impact . | . . . Slashing . | . . . Piercing . | . . . Highest Corruption 1 | . . 1 Average Corruption 1 | . . 1 Corruption Purged . | . . . Corruption Blocked . | . . . Overload Shots . | . . . Overflow Damage 31 | . . 31 Projectiles . | . . . Explosions 31 | . . 31 Melee . | . . . Knockbacks . | . . . Impact . | . . . Kinetic . | . . . Secondary . | . . . Self-Inflicted Damage 24 | . . 24 Shots 1 | . . 1 Rammed . | . . . Targets Rammed . | . . . Kicked . | . . . Crushed . | . . . Highest Temperature 154 | 80 . 154 Average Temperature 53 | 38 . 56 Received Heat Transfer 372 | . . 372 Siege Activations . | . . . Robots Corrupted . | . . . Combat Hostiles . | . . . Parts Fried . | . . . Impact Corruptions . | . . . Robots Melted . | . . . Combat Hostiles . | . . . Parts Melted 1 | . . 1 Heat Transferred 1604 | 259 . 1345 Parts Sabotaged . | . . . Parts Stolen . | . . . Parts Stripped . | . . . Power Chain Reactions . | . . . Missiles Intercepted . | . . . Alert | -11 -10 -9 ------- Run | Jun Mat Mat Peak Influence 393 | 10 11 393 Initial 6 | . 6 4 Average 180 | 4 7 245 Maximum Alert Level 1 | . . 1 Low Security (%) 45 | 100 100 24 Level 1 54 | . . 75 Level 2 . | . . . Level 3 . | . . . Level 4 . | . . . Level 5 . | . . . High Security . | . . . Max Security . | . . . Squads Dispatched 5 | . . 5 Investigation 3 | . . 3 Extermination . | . . . Reinforcement 2 | . . 2 Assault . | . . . Garrison . | . . . Intercept . | . . . Searches Triggered . | . . . Construction Impeded . | . . . Haulers Reinforced . | . . . Active Scanning Responses . | . . . Cargo Convoy Interrupts . | . . . Stealth | -11 -10 -9 --------- Run | Jun Mat Mat Distress Signals 2 | . . 2 Communications Jammed . | . . . Distress Signals . | . . . Times Spotted 34 | . . 34 Peak Tracking Total 8 | . . 8 Tactical Retreats 2 | . . 2 Traps | -11 -10 -9 ------- Run | Jun Mat Mat Traps Triggered . | . . . Indirectly . | . . . Trap Hack Attempts . | . . . Triggered . | . . . Disarmed . | . . . Reprogrammed . | . . . Reused . | . . . Traps Extracted . | . . . Installed . | . . . Triggered . | . . . Machines | -11 -10 -9 ---------- Run | Jun Mat Mat Machines Disabled 2 | . . 2 Max in Single Turn 2 | . . 2 Machines Repaired . | . . . Machines Sabotaged . | . . . Overloaded Fab Kills . | . . . Hacking | -11 -10 -9 --------- Run | Jun Mat Mat Machines Accessed 6 | . 1 5 Terminals 6 | . 1 5 Fabricators . | . . . Repair Stations . | . . . Recycling Units . | . . . Scanalyzers . | . . . Garrison Access . | . . . Total Hacks 16 | . 3 13 Successful 6 | . 1 5 Failed 10 | . 2 8 Catastrophic 2 | . . 2 Database Lockouts . | . . . Manual 7 | . . 7 Terminals 16 | . 3 13 Fabricators . | . . . Repair Stations . | . . . Recycling Units . | . . . Scanalyzers . | . . . Garrison Access . | . . . Terminal Hacks 6 | . 1 5 Locate Traps 1 | . . 1 Zone Layout 5 | . 1 4 Fabricator Hacks . | . . . Repair Station Hacks . | . . . Recycling Unit Hacks . | . . . Scanalyzer . | . . . Garrison Access Hacks . | . . . Unauthorized Hacks . | . . . Terminals . | . . . Fabricators . | . . . Repair Stations . | . . . Recycling Units . | . . . Scanalyzers . | . . . Garrison Access . | . . . Data Cores Recovered . | . . . Used . | . . . Hacking Detections 6 | . 1 5 Full Trace Events 4 | . 1 3 Feedback Events 1 | . . 1 Corruption 1 | . . 1 Feedback Blocked . | . . . Robot Schematics Acquired . | . . . Robots Built . | . . . Authchips . | . . . Time . | . . . Total Robot Build Rating . | . . . Part Schematics Acquired . | . . . Parts Built . | . . . Authchips . | . . . Time . | . . . Total Part Build Rating . | . . . Parts Repaired . | . . . Time . | . . . Parts Recycled . | . . . Recycled Matter . | . . . Retrieved Matter . | . . . Retrieved Components . | . . . Parts Scanalyzed . | . . . Part Schematics Acquired . | . . . Parts Damaged . | . . . Bothacking | -11 -10 -9 ------------ Run | Jun Mat Mat Used RIF Installer . | . . . Robots Hacked . | . . . Non-combat . | . . . Combat . | . . . Robot Hacks Applied . | . . . Relay Couplers Released . | . . . Fabnet Peak Effective % . | . . . Robots Rewired . | . . . Allies Hacked . | . . . Hacks Repelled . | . . . Allies | -11 -10 -9 -------- Run | Jun Mat Mat Total Allies . | . . . Largest Group . | . . . Highest-Rated Group . | . . . Highest-Rated Ally . | . . . Total Orders . | . . . Ally Attacks . | . . . Total Damage . | . . . Kills . | . . . Allies Corrupted . | . . . Allies Melted . | . . . Intel | -11 -10 -9 ------- Run | Jun Mat Mat Robot Analysis Total . | . . . Derelict Logs Recovered . | . . . Drone Launches . | . . . Drone Recoveries . | . . . Exploration | -11 -10 -9 ------------- Run | Jun Mat Mat Turns Passed 617 | 117 50 450 Spaces Moved 408 | 57 42 309 Core 123 | 2 . 121 Treads . | . . . Legs 252 | 55 42 155 Wheels . | . . . Hover . | . . . Flight 33 | . . 33 Fastest Speed 50 | 50 120 50 Average Speed 93 | 117 120 85 Slowest Speed 120 | 120 120 120 Overloaded Moves . | . . . Propulsion Burnouts . | . . . Robots Hopped . | . . . Cave-ins Triggered . | . . . Exploration Rate (%) 18 | 4 15 35 Regions Visited 2 Branch Regions . Pre-discovered Areas . | . . . Known Exits Taken . | . . . Unknown Exits Taken 2 | 1 1 . Scrap Searched . | . . . Spaces Dug . | . . . Terrain Destroyed 65 | . . 65 Melee . | . . . Projectile . | . . . AOE 65 | . . 65 Terrain Rammed . | . . . Walls Destroyed . | . . . Machines Disabled . | . . . Actions | -11 -10 -9 --------- Run | Jun Mat Mat Total 526 | 90 41 395 Wait 8 | . . 8 Move 406 | 56 41 309 Hop . | . . . Pick Up 19 | 14 . 5 Fast Attach 3 | . . 3 Attach 11 | 7 . 4 Detach 1 | . . 1 Swap 2 | . . 2 Drop 6 | 2 . 4 Fire 70 | 11 . 59 Melee . | . . . Ram . | . . . Kick . | . . . Crush . | . . . Escape Stasis . | . . . Rewire . | . . . Trap . | . . . Miscellaneous . | . . . Route ------- -11/Junkyard -10/Materials -9/Materials History --------- Turn | Location | Event 15 | -11/Junkyard | Discovered new exit (range 14) 118 | -11/Junkyard | Entered Materials 151 | -10/Materials | Discovered new exit (range 13) 168 | -10/Materials | Entered another Materials area 168 | -9/Materials | Evolved 2 slots: Propulsion x2 302 | -9/Materials | Destroyed 8 combat bots 304 | -9/Materials | Build established: Mutant 504 | -9/Materials | Lost 4 parts (1p2n1u) 526 | -9/Materials | Core integrity fell below 50% 562 | -9/Materials | Lost 5 parts (2n1u2w) 569 | -9/Materials | Core integrity fell below 20% 618 | -9/Materials | Destroyed by L-31 Rogue with Katana Last Messages --------------- 00579_ Fusion Modulator explodes. 00579_ Terminal disabled. 00579_ Destroyed Hover Unit. 00579_ W-16 Scout destroyed. 00579_ U-05 Engineer lays Concrete. 00580_ U-05 Engineer builds a Wall. 00580_ K-01 Serf collects debris. 00587_ Connecting with Terminal... >>Layout(Zone) Retrieving Zone 5Q layout... Downloaded map data. Feedback: System corruption (+1%). 00587_ ALERT: Suspicious activity at Terminal M005. Dispatching Investigation squad. 00589_ Acquired Targeting Computer. 00596_ Acquired EM Shotgun. 00608_ ALERT: Hostiles spotted, dispatching reinforcements to Terminal M004. 00612_ G-34 Mercenary destroyed. 00618_ EM Shotgun destroyed. Map ----- +----------------------------------------------------+ | ???????????????????????????????????#### | | ??????????????????????????????????????# | | ????????????????????????????????????#?# ###### | | ????????????????????????????????????#?# !=#[ | | ??????????????????????????###?#?????#?# *%#* = | | ??????????????????????????? ??#????# [% + = | | ????????????????????????????# ?#???# % #[""" | | ????????????????????????????# ###### *#%""" | | ????????????????????????????# %! # """ | | ????????????????????????????# * # | | ????????????????????????????# # | | ????????????????????????????# ###### | | ????????????????????????????# %! ###### | | ????????????????????????????# | | ????????????????????????????# ##### | | ???????????????????????????????#??# | | ??????????????????????????????????# #####+ | | ??????????????????????????????? ?## / | | ??????????????????????????????????# ##### """ | | ????????????????????????????????+ ###### """ | | ????????????????????????????????### # [# """ | | ??????????????????????????????????# # # """ | | ??????????????????????????????????# / ??# """ | | ??????????????????????????????????# #????# | | ?????????????????################## # #] | | ?????????? g k [l@ gk g # "" ####"" | | ?????????? #####g########### # "Y # | | | ??????????????????????????????????# # "" # | | ??????????????????????????????????# # # [[[ | | ?????????????????????????????????## ###### [[[ | | ?????????????????????????????######+## #????# [[%! | | ?????????????????????????????# ## ####?###""" | | ?????????????????????????????# [ # #?????# | | ?????????????????????????????# # ######## | | ?????????????????????????????# [[ + | | ?????????????????????????????# [[ # ######## | | ?????????????????????????????# [[ # #?????# | | ?????????????????????????????##########+#####?#?# | | ??????????????????????????????????# #???# | | ??????????????????????????????????# "T" #???# | | ??????????????????????????????????# #???# | | ??????????????????????????????????# #???# | | ??????????????????????????????????# #???# | | ??????????????????????????????????# """ """ #???# | | ??????????????????????????????????# """ """ #???# | | ??????????????????????????????????# """ """ #???## | | ?????????????????????????????????###############?? | | ?????????????????????????????????# ### | | ?????????????????????????????????# """ """" # | | ?????????????????????????????????# "R" """" # | +----------------------------------------------------+ Best States ------------- Heat Dissipation 28 Energy Generation 10 Energy Capacity 125 Matter Stores 300 Matter Capacity 300 Sight Range 16 Terrain Scan Range 16 Terrain Scan Density 10 Evasion (%) 59 Item Schematics ----------------- None Robot Schematics ------------------ None Fabricated ------------ Nothing Alien Tech Used ----------------- None Achievements -------------- None Challenges ------------ None Game ------ Seed ResetNeutronAccelerator Manual? 0 Play Time 00:14:48 Cumulative 52.7 hours Start 2023.07.14 @ 17:16:25 End 2023.07.14 @ 17:28:26 Sessions 1 Manual Loads 0 Difficulty Rogue Special Mode None Game No. 70 Rogue 70 Adventurer 0 Explorer 0 Win Type - Total 0 Types 0/0/0/0/0/0/0/0/0 Lore% 17 Gallery% 35 Achievement% 22 Wizard Run 0 Options --------- ASCII 0 Keyboard 0 Movement Mouse Keybinds 0 Fullscreen 1 Font 24/Smallcaps Map View 76x50 Tactical HUD 1 Map Filters NONE Filters NONE Steam 1 RUN: 8071d775-71de-46ab-aa21-88d3e7143b81